fUST/lending_fUST_20250707
["ID","MTS","AMOUNT","RATE_DAILY","PERIOD"]
[370015904,1751835038569,-460.0,0.00016844,2]
[370015906,1751835038579,-460.0,0.00016844,2]
[370015908,1751835038588,-460.0,0.00016844,2]
[370015910,1751835038598,-460.0,0.00016844,2]
[370015912,1751835038607,-460.0,0.00016844,2]
[370015914,1751835038616,-460.0,0.00016844,2]
[370015915,1751835038625,-460.0,0.00016844,2]
[370015917,1751835038635,-467.81794588,0.00016844,2]
[370015920,1751835038644,-460.0,0.00016844,2]
[370015921,1751835038653,-460.0,0.00016844,2]
[370015923,1751835038663,-460.0,0.00016844,2]
[370015925,1751835038672,-228.16,0.00016844,2]
[370015928,1751835038683,-460.0,0.00016844,2]
[370015930,1751835038692,-460.0,0.00016844,2]
[370015932,1751835038702,-460.0,0.00016844,2]
[370015934,1751835038711,-460.0,0.00016844,2]
[370015935,1751835038721,-460.0,0.00016844,2]
[370015938,1751835038730,-1083.75,0.00016844,2]
[370015940,1751835038739,-460.0,0.00016844,2]
[370015941,1751835038748,-500.0,0.00016844,2]
[370015943,1751835038758,-152.11638954,0.00016844,2]
[370015945,1751835038767,-500.0,0.00016844,2]
[370015947,1751835038776,-500.0,0.00016844,2]
[370015949,1751835038786,-500.0,0.00016844,2]
[370015951,1751835038795,-169.13833195,0.00016844,2]
[370015953,1751835038804,-295.53842479,0.00016844,2]
[370015955,1751835038813,-460.0,0.00016844,2]
[370015957,1751835038824,-1320.85,0.00016844,2]
[370015960,1751835038835,-460.0,0.00016844,2]
[370015962,1751835038844,-460.0,0.00016844,2]
[370015963,1751835038853,-460.0,0.00016844,2]
[370015965,1751835038862,-517.67,0.00016844,2]
[370015968,1751835038872,-460.0,0.00016844,2]
[370015969,1751835038881,-461.66543618,0.00016844,2]
[370015971,1751835038890,-460.0,0.00016844,2]
[370015973,1751835038899,-460.0,0.00016844,2]
[370015976,1751835038909,-460.0,0.00016844,2]
[370015978,1751835038919,-474.02656608,0.00016844,2]
[370015980,1751835038928,-460.0,0.00016844,2]
[370015981,1751835038937,-536.66,0.00016844,2]
[370015983,1751835038946,-985.19,0.00016844,2]
[370015986,1751835038955,-460.0,0.00016844,2]
[370015988,1751835038965,-2142.33,0.00016844,2]
[370015990,1751835038975,-460.0,0.00016844,2]
[370015991,1751835038984,-474.17,0.00016844,2]
[370015994,1751835038994,-568.12080442,0.00016844,2]
[370015996,1751835039003,-460.0,0.00016844,2]
[370015998,1751835039016,-558.81,0.00016844,2]
[370015999,1751835039026,-460.0,0.00016844,2]
[370016002,1751835039036,-460.0,0.00016844,2]
[370016003,1751835039045,-460.0,0.00016844,2]
[370016005,1751835039055,-559.0,0.00016844,2]
[370016008,1751835039065,-460.0,0.00016844,2]
[370016010,1751835039074,-500.0,0.00016844,2]
[370016012,1751835039084,-460.0,0.00016844,2]
[370016014,1751835039093,-392.73960778,0.00016844,2]
[370016016,1751835039103,-171.89,0.00016844,2]
[370016018,1751835039112,-460.0,0.00016844,2]
[370016020,1751835039122,-460.0,0.00016844,2]
[370016022,1751835039131,-460.0,0.00016844,2]
[370016024,1751835039140,-460.0,0.00016844,2]
[370016026,1751835039150,-460.0,0.00016844,2]
[370016028,1751835039159,-460.0,0.00016844,2]
[370016030,1751835039168,-460.0,0.00016844,2]
[370016032,1751835039178,-460.0,0.00016844,2]
[370016033,1751835039187,-460.0,0.00016844,2]
[370016034,1751835039195,-460.0,0.00016844,2]
[370016035,1751835039205,-460.0,0.00016844,2]
[370016036,1751835039214,-460.0,0.00016844,2]
[370016037,1751835039223,-460.0,0.00016844,2]
[370016038,1751835039232,-460.0,0.00016844,2]
[370016039,1751835039241,-460.0,0.00016844,2]
[370016040,1751835039250,-662.04,0.00016844,2]
[370016041,1751835039260,-460.0,0.00016844,2]
[370016042,1751835039269,-724.84,0.00016844,2]
[370016043,1751835039279,-460.0,0.00016844,2]
[370016044,1751835039288,-460.0,0.00016844,2]
[370016045,1751835039298,-460.0,0.00016844,2]
[370016046,1751835039307,-460.0,0.00016844,2]
[370016047,1751835039317,-460.0,0.00016844,2]
[370016048,1751835039327,-460.0,0.00016844,2]
[370016049,1751835039336,-460.0,0.00016844,2]
[370016050,1751835039346,-395.01649157,0.00016844,2]
[370016051,1751835039355,-460.0,0.00016844,2]
[370016052,1751835039364,-460.0,0.00016844,2]
[370016053,1751835039374,-460.0,0.00016844,2]
[370016054,1751835039383,-460.0,0.00016844,2]
[370016055,1751835039392,-460.0,0.00016844,2]
[370016056,1751835039402,-460.0,0.00016844,2]
[370016058,1751835039411,-460.0,0.00016844,2]
[370016059,1751835039421,-460.0,0.00016844,2]
[370016060,1751835039431,-460.0,0.00016844,2]
[370016061,1751835039440,-1494.62,0.00016844,2]
[370016062,1751835039449,-460.0,0.00016844,2]
[370016063,1751835039458,-460.0,0.00016844,2]
[370016064,1751835039468,-460.0,0.00016845,2]
[370016065,1751835039478,-212.34026626,0.00016845,2]
[370016066,1751835039487,-500.49937775,0.00016845,2]
[370016067,1751835039497,-460.0,0.00016845,2]
[370016068,1751835039506,-460.0,0.00016845,2]
[370016069,1751835039516,-460.0,0.00016845,2]
[370016070,1751835039526,-460.0,0.00016845,2]
[370016071,1751835039536,-460.0,0.00016845,2]
[370016072,1751835039546,-460.0,0.00016845,2]
[370016073,1751835039555,-460.0,0.00016845,2]
[370016076,1751835039567,-460.0,0.00016845,2]
[370016078,1751835039577,-460.0,0.00016845,2]
[370016079,1751835039587,-460.0,0.00016845,2]
[370016080,1751835039596,-460.0,0.00016845,2]
[370016081,1751835039605,-460.0,0.00016845,2]
[370016082,1751835039614,-460.0,0.00016845,2]
[370016083,1751835039624,-460.0,0.00016845,2]
[370016084,1751835039633,-407.34190061,0.00016845,2]
[370016085,1751835039643,-569.14,0.00016845,2]
[370016086,1751835039652,-460.0,0.00016845,2]
[370016087,1751835039661,-460.0,0.00016845,2]
[370016088,1751835039671,-460.0,0.00016845,2]
[370016089,1751835039680,-460.0,0.00016845,2]
[370016090,1751835039690,-460.0,0.00016845,2]
[370016091,1751835039699,-460.0,0.00016845,2]
[370016092,1751835039709,-460.0,0.00016845,2]
[370016093,1751835039718,-460.0,0.00016845,2]
[370016094,1751835039728,-460.0,0.00016845,2]
[370016095,1751835039737,-460.0,0.00016845,2]
[370016096,1751835039746,-460.0,0.00016845,2]
[370016097,1751835039756,-460.0,0.00016845,2]
[370016098,1751835039766,-460.0,0.00016845,2]
[370016099,1751835039776,-460.0,0.00016845,2]
[370016100,1751835039785,-194.05631596,0.00016845,2]
[370016101,1751835039794,-460.0,0.00016845,2]
[370016102,1751835039804,-460.0,0.00016845,2]
[370016103,1751835039813,-460.0,0.00016845,2]
[370016104,1751835039821,-594.16,0.00016845,2]
[370016105,1751835039831,-283.50429588,0.00016845,2]
[370016106,1751835039840,-460.0,0.00016845,2]
[370016107,1751835039850,-460.0,0.00016845,2]
[370016108,1751835039859,-502.62,0.00016845,2]
[370016109,1751835039868,-460.0,0.00016845,2]
[370016110,1751835039877,-460.0,0.00016845,2]
[370016111,1751835039887,-460.0,0.00016845,2]
[370016112,1751835039896,-460.0,0.00016845,2]
[370016113,1751835039905,-460.0,0.00016845,2]
[370016114,1751835039914,-460.0,0.00016845,2]
[370016115,1751835039923,-587.46733646,0.00016845,2]
[370016116,1751835039933,-460.0,0.00016845,2]
[370016117,1751835039942,-492.95,0.00016845,2]
[370016118,1751835039951,-460.0,0.00016845,2]
[370016119,1751835039960,-460.0,0.00016845,2]
[370016120,1751835039970,-460.0,0.00016845,2]
[370016121,1751835039979,-546.54,0.00016845,2]
[370016122,1751835039988,-460.0,0.00016845,2]
[370016123,1751835039998,-460.0,0.00016845,2]
[370016124,1751835040009,-460.0,0.00016845,2]
[370016125,1751835040020,-460.0,0.00016845,2]
[370016126,1751835040030,-556.36,0.00016845,2]
[370016127,1751835040039,-460.0,0.00016845,2]
[370016128,1751835040048,-460.0,0.00016845,2]
[370016129,1751835040057,-460.0,0.00016845,2]
[370016130,1751835040066,-460.0,0.00016845,2]
[370016131,1751835040076,-460.0,0.00016845,2]
[370016132,1751835040085,-460.0,0.00016845,2]
[370016133,1751835040094,-460.0,0.00016845,2]
[370016134,1751835040104,-460.0,0.00016845,2]
[370016135,1751835040113,-484.49377865,0.00016845,2]
[370016136,1751835040122,-460.0,0.00016845,2]
[370016137,1751835040131,-460.0,0.00016845,2]
[370016138,1751835040140,-560.95,0.00016845,2]
[370016139,1751835040150,-460.0,0.00016845,2]
[370016140,1751835040159,-460.0,0.00016845,2]
[370016141,1751835040168,-265.25136343,0.00016845,2]
[370016142,1751835040177,-517.25,0.00016845,2]
[370016144,1751835040186,-460.0,0.00016845,2]
[370016145,1751835040195,-495.97,0.00016845,2]
[370016147,1751835040204,-460.0,0.00016845,2]
[370016148,1751835040213,-460.0,0.00016845,2]
[370016149,1751835040223,-460.0,0.00016845,2]
[370016150,1751835040232,-400.08115534,0.00016845,2]
[370016152,1751835040241,-460.0,0.00016845,2]
[370016154,1751835040250,-460.0,0.00016845,2]
[370016155,1751835040259,-460.0,0.00016845,2]
[370016157,1751835040269,-460.0,0.00016845,2]
[370016159,1751835040279,-460.0,0.00016845,2]
[370016160,1751835040288,-460.0,0.00016845,2]
[370016161,1751835040298,-460.0,0.00016845,2]
[370016162,1751835040308,-460.0,0.00016845,2]
[370016163,1751835040317,-607.61144704,0.00016845,2]
[370016164,1751835040327,-156.77223787,0.00016845,2]
[370016165,1751835040336,-488.800053,0.00016845,2]
[370016166,1751835040345,-460.0,0.00016845,2]
[370016167,1751835040355,-460.0,0.00016845,2]
[370016168,1751835040364,-460.0,0.00016845,2]
[370016169,1751835040374,-460.0,0.00016845,2]
[370016170,1751835040383,-564.19,0.00016845,2]
[370016171,1751835040392,-460.0,0.00016845,2]
[370016172,1751835040402,-460.0,0.00016845,2]
[370016173,1751835040411,-460.0,0.00016845,2]
[370016174,1751835040421,-460.0,0.00016845,2]
[370016175,1751835040433,-460.0,0.00016845,2]
[370016176,1751835040442,-460.0,0.00016845,2]
[370016177,1751835040451,-460.0,0.00016845,2]
[370016178,1751835040461,-366.58357843,0.00016845,2]
[370016179,1751835040470,-548.26,0.00016845,2]
[370016180,1751835040480,-460.0,0.00016845,2]
[370016181,1751835040490,-460.0,0.00016845,2]
[370016182,1751835040499,-460.0,0.00016845,2]
[370016183,1751835040508,-587.90674051,0.00016845,2]
[370016184,1751835040517,-460.0,0.00016845,2]
[370016185,1751835040526,-460.0,0.00016845,2]
[370016186,1751835040535,-587.0,0.00016845,2]
[370016187,1751835040545,-460.0,0.00016846,2]
[370016188,1751835040554,-460.0,0.00016846,2]
[370016189,1751835040563,-460.0,0.00016846,2]
[370016190,1751835040572,-460.0,0.00016846,2]
[370016191,1751835040581,-460.0,0.00016846,2]
[370016192,1751835040591,-460.0,0.00016846,2]
[370016193,1751835040601,-460.0,0.00016846,2]
[370016194,1751835040610,-460.0,0.00016846,2]
[370016195,1751835040621,-542.84,0.00016846,2]
[370016196,1751835040631,-460.0,0.00016846,2]
[370016197,1751835040640,-460.0,0.00016846,2]
[370016198,1751835040650,-270.16488436,0.00016846,2]
[370016199,1751835040659,-460.0,0.00016846,2]
[370016200,1751835040668,-460.0,0.00016846,2]
[370016201,1751835040679,-460.0,0.00016846,2]
[370016202,1751835040688,-865.91,0.00016846,2]
[370016203,1751835040698,-2596.85,0.00016846,2]
[370016204,1751835040707,-650.75,0.00016846,2]
[370016205,1751835040716,-460.0,0.00016846,2]
[370016206,1751835040726,-460.0,0.00016847,2]
[370016207,1751835040737,-571.84,0.00017108,3]
[370016208,1751835040747,-454.45039192,0.00017116,2]
[370016209,1751835040757,-478.44,0.00017116,2]
[370016210,1751835040769,-966.68,0.00017116,2]
[370016211,1751835040779,-1386.99,0.00017116,2]
[370016212,1751835040788,-460.0,0.00017117,2]
[370016213,1751835040798,-460.0,0.00017117,2]
[370016214,1751835040808,-1275.66,0.00017117,2]
[370016215,1751835040819,-1400.55,0.00017117,2]
[370016216,1751835040828,-460.0,0.00017117,2]
[370016217,1751835040837,-771.03,0.00017117,2]
[370016218,1751835040849,-460.0,0.00017117,2]
[370016219,1751835040858,-460.0,0.00017117,2]
[370016220,1751835040869,-460.0,0.00017117,2]
[370016221,1751835040879,-591.79,0.00017117,2]
[370016222,1751835040889,-559.3,0.00017118,2]
[370016223,1751835040900,-460.0,0.00017118,2]
[370016224,1751835040910,-460.0,0.00017118,2]
[370016225,1751835040920,-598.75,0.00017118,2]
[370016226,1751835040930,-460.0,0.00017118,2]
[370016227,1751835040940,-189.6194845,0.00017118,2]
[370016228,1751835040950,-460.0,0.00017118,2]
[370016229,1751835040960,-1083.75,0.00017118,2]
[370016230,1751835040969,-460.0,0.00017118,2]
[370016231,1751835040980,-460.0,0.00017118,2]
[370016232,1751835040990,-1320.85,0.00017118,2]
[370016233,1751835040999,-451.02,0.00017118,2]
[370016234,1751835041010,-985.19,0.00017118,2]
[370016235,1751835041021,-2142.33,0.00017118,2]
[370016236,1751835041031,-559.0,0.00017118,2]
[370016237,1751835041040,-460.0,0.00017118,2]
[370016238,1751835041049,-460.0,0.00017118,2]
[370016239,1751835041058,-460.0,0.00017118,2]
[370016240,1751835041068,-460.0,0.00017118,2]
[370016241,1751835041077,-662.04,0.00017118,2]
[370016242,1751835041086,-724.84,0.00017118,2]
[370016243,1751835041097,-460.0,0.00017118,2]
[370016244,1751835041106,-241.56,0.00017118,2]
[370016245,1751835041116,-460.0,0.00017118,2]
[370016246,1751835041128,-460.0,0.00017118,2]
[370016247,1751835041138,-460.0,0.00017118,2]
[370016248,1751835041147,-460.0,0.00017118,2]
[370016249,1751835041156,-460.0,0.00017118,2]
[370016250,1751835041168,-460.0,0.00017118,2]
[370016251,1751835041177,-460.0,0.00017118,2]
[370016252,1751835041187,-460.0,0.00017118,2]
[370016253,1751835041198,-460.0,0.00017118,2]
[370016254,1751835041207,-1494.62,0.00017118,2]
[370016255,1751835041218,-460.0,0.00017118,2]
[370016256,1751835041227,-460.0,0.00017118,2]
[370016257,1751835041237,-291.80930571,0.00017119,2]
[370016258,1751835041247,-460.0,0.00017119,2]
[370016259,1751835041257,-460.0,0.00017119,2]
[370016260,1751835041267,-460.0,0.00017119,2]
[370016261,1751835041277,-460.0,0.00017119,2]
[370016262,1751835041287,-460.0,0.00017119,2]
[370016263,1751835041297,-460.0,0.00017119,2]
[370016264,1751835041307,-460.0,0.00017119,2]
[370016265,1751835041317,-460.0,0.00017119,2]
[370016266,1751835041326,-460.0,0.00017119,2]
[370016267,1751835041335,-460.0,0.00017119,2]
[370016268,1751835041345,-460.0,0.00017119,2]
[370016269,1751835041355,-460.0,0.00017119,2]
[370016270,1751835041364,-460.0,0.00017119,2]
[370016271,1751835041374,-548.26,0.00017119,2]
[370016272,1751835041383,-460.0,0.00017119,2]
[370016273,1751835041392,-580.0,0.00017119,2]
[370016274,1751835041402,-587.0,0.00017119,2]
[370016275,1751835041411,-460.0,0.0001712,2]
[370016276,1751835041421,-460.0,0.0001712,2]
[370016277,1751835041430,-460.0,0.0001712,2]
[370016278,1751835041439,-460.0,0.0001712,2]
[370016279,1751835041449,-460.0,0.0001712,2]
[370016280,1751835041459,-460.0,0.0001712,2]
[370016281,1751835041468,-865.91,0.0001712,2]
[370016282,1751835041478,-2596.85,0.0001712,2]
[370016283,1751835041488,-650.75,0.0001712,2]
[370016284,1751835041497,-506.2073548,0.00017121,2]
[370016285,1751835041506,-151.0,0.00017128,2]
[370016286,1751835041516,-151.0,0.00017128,2]
[370016287,1751835041526,-151.0,0.00017128,2]
[370016288,1751835041536,-151.0,0.00017128,2]
[370016289,1751835041545,-151.0,0.00017128,2]
[370016290,1751835041554,-201.93609715,0.00017128,2]
[370016291,1751835041563,-151.0,0.00017128,2]
[370016292,1751835041572,-151.0,0.00017128,2]
[370016293,1751835041581,-151.0,0.00017128,2]
[370016294,1751835041590,-500.0,0.00017128,2]
[370016295,1751835041599,-151.0,0.00017155,2]
[370016296,1751835041608,-151.0,0.00017155,2]
[370016297,1751835041617,-151.0,0.00017155,2]
[370016298,1751835041627,-151.0,0.00017155,2]
[370016299,1751835041636,-151.0,0.00017155,2]
[370016300,1751835041646,-151.0,0.00017155,2]
[370016301,1751835041655,-500.0,0.00017155,2]
[370016302,1751835041663,-198.0,0.00017183,2]
[370016303,1751835041673,-198.0,0.00017183,2]
[370016304,1751835041682,-198.0,0.00017183,2]
[370016305,1751835041691,-198.0,0.00017183,2]
[370016306,1751835041700,-198.0,0.00017183,2]
[370016307,1751835041709,-198.0,0.00017183,2]
[370016308,1751835041719,-500.0,0.00017183,2]
[370016309,1751835041728,-500.0,0.0001721,2]
[370016310,1751835041738,-500.0,0.00017228,2]
[370016311,1751835041747,-500.0,0.00017228,2]
[370016312,1751835041756,-500.0,0.00017228,2]
[370016313,1751835041765,-500.0,0.00017228,2]
[370016314,1751835041914,-500.0,0.00017228,2]
[370016315,1751835041923,-500.0,0.00017228,2]
[370016316,1751835041932,-500.0,0.00017228,2]
[370016317,1751835041942,-500.0,0.00017228,2]
[370016318,1751835041951,-500.0,0.00017228,2]
[370016319,1751835041960,-500.0,0.00017238,2]
[370016320,1751835041970,-500.0,0.00017265,2]
[370016321,1751835041979,-500.0,0.00017292,2]
[370016322,1751835041988,-500.0,0.0001732,2]
[370016323,1751835041998,-500.0,0.00017347,2]
[370016324,1751835042007,-500.0,0.00017375,2]
[370016325,1751835042019,-966.68,0.0001739,2]
[370016326,1751835042029,-1386.99,0.0001739,2]
[370016327,1751835042038,-460.0,0.00017391,2]
[370016328,1751835042047,-460.0,0.00017391,2]
[370016329,1751835042057,-1275.66,0.00017391,2]
[370016330,1751835042066,-1400.55,0.00017391,2]
[370016331,1751835042075,-460.0,0.00017391,2]
[370016332,1751835042085,-771.03,0.00017391,2]
[370016333,1751835042095,-460.0,0.00017391,2]
[370016334,1751835042104,-460.0,0.00017391,2]
[370016335,1751835042113,-460.0,0.00017391,2]
[370016336,1751835042123,-591.79,0.00017391,2]
[370016337,1751835042132,-460.0,0.00017392,2]
[370016338,1751835042141,-497.68,0.00017392,2]
[370016339,1751835042150,-460.0,0.00017392,2]
[370016340,1751835042159,-460.0,0.00017392,2]
[370016341,1751835042169,-1083.75,0.00017392,2]
[370016342,1751835042178,-460.0,0.00017392,2]
[370016343,1751835042187,-460.0,0.00017392,2]
[370016344,1751835042197,-1320.85,0.00017392,2]
[370016345,1751835042206,-985.19,0.00017392,2]
[370016346,1751835042215,-2142.33,0.00017392,2]
[370016347,1751835042224,-559.0,0.00017392,2]
[370016348,1751835042233,-460.0,0.00017392,2]
[370016349,1751835042243,-460.0,0.00017392,2]
[370016350,1751835042253,-460.0,0.00017392,2]
[370016351,1751835042262,-460.0,0.00017392,2]
[370016352,1751835042272,-662.04,0.00017392,2]
[370016353,1751835042282,-724.84,0.00017392,2]
[370016354,1751835042291,-460.0,0.00017392,2]
[370016355,1751835042300,-460.0,0.00017392,2]
[370016356,1751835042309,-460.0,0.00017392,2]
[370016357,1751835042318,-460.0,0.00017392,2]
[370016358,1751835042327,-460.0,0.00017392,2]
[370016359,1751835042336,-460.0,0.00017392,2]
[370016360,1751835042345,-460.0,0.00017392,2]
[370016361,1751835042355,-460.0,0.00017392,2]
[370016362,1751835042364,-1494.62,0.00017392,2]
[370016363,1751835042373,-460.0,0.00017392,2]
[370016364,1751835042382,-460.0,0.00017392,2]
[370016365,1751835042392,-460.0,0.00017393,2]
[370016366,1751835042401,-460.0,0.00017393,2]
[370016367,1751835042410,-460.0,0.00017393,2]
[370016368,1751835042420,-460.0,0.00017393,2]
[370016369,1751835042429,-460.0,0.00017393,2]
[370016370,1751835042439,-426.25370299,0.00017393,2]
[370016372,1751835042448,-460.0,0.00017393,2]
[370016374,1751835042458,-404.35,0.00017393,2]
[370016376,1751835042467,-460.0,0.00017393,2]
[370016378,1751835042477,-460.0,0.00017393,2]
[370016379,1751835042486,-548.26,0.00017393,2]
[370016380,1751835042496,-460.0,0.00017393,2]
[370016382,1751835042505,-587.0,0.00017393,2]
[370016383,1751835042515,-460.0,0.00017394,2]
[370016384,1751835042524,-362.83595714,0.00017394,2]
[370016385,1751835042535,-460.0,0.00017394,2]
[370016386,1751835042545,-460.0,0.00017394,2]
[370016387,1751835042555,-460.0,0.00017394,2]
[370016388,1751835042564,-865.91,0.00017394,2]
[370016389,1751835042574,-2596.85,0.00017394,2]
[370016390,1751835042584,-650.75,0.00017394,2]
[370016391,1751835042593,-172.00021201,0.00017402,2]
[370016392,1751835042602,-500.0,0.00017521,2]
[370016393,1751835042611,-500.0,0.00017521,2]
[370016394,1751835042619,-500.0,0.00017521,2]
[370016395,1751835042628,-500.0,0.00017521,2]
[370016396,1751835042637,-500.0,0.00017521,2]
[370016397,1751835042646,-3393.69868082,0.00017566,2]
[370016398,1751835042656,-966.68,0.00017664,2]
[370016399,1751835042665,-1386.99,0.00017664,2]
[370016400,1751835042675,-460.0,0.00017665,2]
[370016401,1751835042685,-460.0,0.00017665,2]
[370016402,1751835042694,-1275.66,0.00017665,2]
[370016403,1751835042704,-1400.55,0.00017665,2]
[370016404,1751835042713,-771.03,0.00017665,2]
[370016405,1751835042723,-460.0,0.00017665,2]
[370016406,1751835042732,-460.0,0.00017665,2]
[370016407,1751835042742,-591.79,0.00017665,2]
[370016408,1751835042751,-460.0,0.00017666,2]
[370016409,1751835042761,-382.05122356,0.00017666,2]
[370016410,1751835042770,-1083.75,0.00017666,2]
[370016411,1751835042779,-460.0,0.00017666,2]
[370016412,1751835042789,-460.0,0.00017666,2]
[370016413,1751835042798,-1320.85,0.00017666,2]
[370016414,1751835042807,-985.19,0.00017666,2]
[370016415,1751835042817,-2142.33,0.00017666,2]
[370016416,1751835042826,-559.0,0.00017666,2]
[370016417,1751835042837,-370.63316303,0.00017666,2]
[370016418,1751835042847,-460.0,0.00017666,2]
[370016419,1751835042856,-460.0,0.00017666,2]
[370016420,1751835042865,-460.0,0.00017666,2]
[370016421,1751835042874,-662.04,0.00017666,2]
[370016422,1751835042884,-724.84,0.00017666,2]
[370016423,1751835042895,-463.82007843,0.00017666,2]
[370016424,1751835042907,-460.0,0.00017666,2]
[370016425,1751835042918,-460.0,0.00017666,2]
[370016426,1751835042928,-460.0,0.00017666,2]
[370016427,1751835042937,-504.68,0.00017666,2]
[370016428,1751835042947,-460.0,0.00017666,2]
[370016429,1751835042957,-460.0,0.00017666,2]
[370016430,1751835042966,-1494.62,0.00017666,2]
[370016431,1751835042975,-460.0,0.00017666,2]
[370016432,1751835042984,-460.0,0.00017667,2]
[370016433,1751835042994,-250.13880585,0.00017667,2]
[370016434,1751835043003,-460.0,0.00017667,2]
[370016435,1751835043017,-460.0,0.00017667,2]
[370016436,1751835043027,-539.46893014,0.00017667,2]
[370016437,1751835043037,-460.0,0.00017667,2]
[370016438,1751835043047,-430.62,0.00017667,2]
[370016439,1751835043056,-460.0,0.00017667,2]
[370016440,1751835043066,-548.26,0.00017667,2]
[370016441,1751835043077,-460.0,0.00017667,2]
[370016442,1751835043087,-587.0,0.00017667,2]
[370016443,1751835043096,-460.0,0.00017668,2]
[370016444,1751835043105,-460.0,0.00017668,2]
[370016445,1751835043117,-460.0,0.00017668,2]
[370016446,1751835043127,-460.0,0.00017668,2]
[370016447,1751835043138,-865.91,0.00017668,2]
[370016448,1751835043148,-2596.85,0.00017668,2]
[370016449,1751835043158,-650.75,0.00017668,2]
[370016450,1751835043168,-2271.5339855,0.0001777,2]
[370016451,1751835043179,-926.75408083,0.00017776,2]
[370016452,1751835043188,-502.02912215,0.00017776,2]
[370016453,1751835043199,-500.0,0.00017776,2]
[370016454,1751835043208,-1000.0,0.00017776,2]
[370016455,1751835043218,-268.92590677,0.00017776,2]
[370016456,1751835043228,-1000.0,0.00017776,2]
[370016457,1751835043237,-969.92915345,0.00017776,2]
[370016458,1751835043246,-1000.0,0.00017776,2]
[370016459,1751835043255,-1000.0,0.00017776,2]
[370016460,1751835043266,-21845.38962522,0.00017839,2]
[370016461,1751835043275,-230.45878613,0.00017841,2]
[370016462,1751835043285,-12582.33653824,0.00017841,2]
[370016463,1751835043294,-160.0,0.00017841,2]
[370016464,1751835043304,-215.18120504,0.00017841,2]
[370016465,1751835043313,-160.0,0.00017841,2]
[370016466,1751835043323,-848.15551661,0.00017841,2]
[370016467,1751835043332,-160.0,0.00017841,2]
[370016468,1751835043342,-160.0,0.00017841,2]
[370016469,1751835043352,-214.03875559,0.00017841,2]
[370016470,1751835043361,-837.69501035,0.00017841,2]
[370016471,1751835043370,-524.94624002,0.00017841,2]
[370016472,1751835043379,-160.0,0.00017843,2]
[370016473,1751835043388,-160.0,0.00017843,2]
[370016474,1751835043398,-160.0,0.00017843,2]
[370016475,1751835043407,-160.0,0.00017843,2]
[370016476,1751835043416,-177.7370323,0.0001789,2]
[370016477,1751835043426,-159.4673789,0.0001789,2]
[370016478,1751835043435,-966.68,0.00017938,2]
[370016479,1751835043445,-1386.99,0.00017938,2]
[370016480,1751835043454,-460.0,0.00017939,2]
[370016481,1751835043465,-1275.66,0.00017939,2]
[370016482,1751835043476,-1400.55,0.00017939,2]